[Event "Czech Extraliga 2024-25"]
[Site "Czechia"]
[Date "2024.11.02"]
[Round "9.6"]
[White "Jares, Michal"]
[Black "Lihotsky, Lukas"]
[Result "1/2-1/2"]
[ECO "E03"]
[WhiteElo "2285"]
[BlackElo "2076"]
[Annotator "RC"]
[PlyCount "377"]
[EventDate "2024.09.12"]
[EventType "team-tourn"]
[EventCountry "CZE"]
[SourceTitle "playchess.com"]
[Source "ChessBase"]
[SourceQuality "1"]
[TimeControl "40/5400+30:1800+30"]

1. Nf3 {[%emt 0:00:06]} d5 {[%emt 0:00:25]} 2. g3 {[%emt 0:00:15]} Nd7 {[%emt 0:00:10]} 3. c4 {[%emt 0:03:47]} dxc4 {[%emt 0:00:31]} 4. Qa4 {[%emt 0:00:02]} a6 {[%emt 0:00:44]} 5. Qxc4 {[%emt 0:00:03]} b5 {[%emt 0:02:05]} 6. Qc2 {[%emt 0:00:11]} Bb7 {[%emt 0:01:08]} 7. d4 {[%emt 0:08:03]} Ngf6 {[%emt 0:10:16]} 8. Bg2 {[%emt 0:00:33]} e6 {[%emt 0:00:18]} 9. O-O {[%emt 0:00:45]} c5 {[%emt 0:04:16]} 10. Bg5 {[%emt 0:16:50]} Rc8 {[%emt 0:03:23]} 11. Qd1 {[%emt 0:02:59]} h6 {[%emt 0:09:57]} 12. Bxf6 {[%emt 0:13:25]} Nxf6 {[%emt 0:00:24]} 13. e3 {[%emt 0:00:22]} cxd4 {[%emt 0:04:23]} 14. Nxd4 {[%emt 0:03:23]} Bxg2 {[%emt 0:00:12]} 15. Kxg2 {[%emt 0:00:01]} Bc5 {[%emt 0:09:16]} 16. Nb3 {[%emt 0:01:34]} Qb6 {[%emt 0:02:35]} 17. Qf3 {[%emt 0:10:46]} O-O {[%emt 0:02:20]} 18. Nc3 {[%emt 0:00:44]} Bb4 {[%emt 0:06:04]} 19. Ne4 {[%emt 0:02:22]} Nxe4 {[%emt 0:03:26]} 20. Qxe4 {[%emt 0:00:03]} Be7 {[%emt 0:00:16]} 21. Rfd1 {[%emt 0:08:42]} Bf6 {[%emt 0:38:51]} 22. Rd2 {[%emt 0:05:24]} Rfd8 {[%emt 0:00:00]} 23. Rxd8+ Rxd8 {[%emt 0:00:00]} 24. Qc2 {[%emt 0:01:48]} Qb7+ {[%emt 0:00:00]} 25. Kg1 {[%emt 0:00:03]} Qd5 {[%emt 0:00:00]} 26. Rc1 {[%emt 0:01:59]} Qd3 {[%emt 0:00:00]} 27. Qxd3 {[%emt 0:03:07]} Rxd3 {[%emt 0:00:00]} 28. Rc6 {[%emt 0:03:12]} Rd1+ {[%emt 0:00:00]} 29. Kg2 {[%emt 0:00:01]} Bxb2 {[%emt 0:00:00]} 30. Rxa6 {[%emt 0:00:03]} b4 {[%emt 0:00:00]} 31. Ra8+ {[%emt 0:04:36]} Kh7 {[%emt 0:00:00]} 32. Ra7 {[%emt 0:01:07]} Kg8 {[%emt 0:00:00]} 33. Ra8+ {[%emt 0:02:06]} Kh7 {[%emt 0:00:00]} 34. Ra7 {[%emt 0:00:06]} Kg8 {[%emt 0:00:00]} 35. h4 {[%emt 0:00:35]} g6 {[%emt 0:00:00]} 36. Kf3 {[%emt 0:04:33]} Bc3 {[%emt 0:00:55]} 37. Nc5 {[%emt 0:03:37]} Rd5 {[%emt 0:06:03]} 38. Nb3 {[%emt 0:01:32]} Rd1 {[%emt 0:00:06]} 39. Nc5 {[%emt 0:00:40]} Rd5 {[%emt 0:01:18]} 40. Ra8+ {[%emt 0:00:02]} Kg7 {[%emt 0:00:27]} 41. Nb3 {[%emt 0:06:12]} Rd1 {[%emt 0:00:45]} 42. Nc5 {[%emt 0:06:37]} Rd5 {[%emt 0:02:55]} 43. Ne4 {[%emt 0:02:38]} Bb2 {[%emt 0:14:23]} 44. Ke2 {[%emt 0:00:38]} Rd7 {[%emt 0:01:51]} 45. Nc5 {[%emt 0:05:53]} Rd5 {[%emt 0:00:54]} 46. Nb3 {[%emt 0:01:24]} Bc3 {[%emt 0:03:15]} 47. Ra7 {[%emt 0:01:06]} Rd8 {[%emt 0:02:42]} 48. Ra5 {[%emt 0:02:26]} Rd7 {[%emt 0:02:07]} 49. Ra6 {[%emt 0:01:03]} Rd5 {[%emt 0:00:29]} 50. Ra7 {[%emt 0:00:58]} Rd8 {[%emt 0:00:05]} 51. Nc5 {[%emt 0:02:00]} Rd2+ {[%emt 0:01:15]} 52. Kf3 {[%emt 0:01:05]} Kg8 {[%emt 0:00:19]} 53. Ne4 {[%emt 0:00:58]} Rd5 {[%emt 0:01:10]} 54. a3 {[%emt 0:01:47]} Rb5 {[%emt 0:03:34]} 55. axb4 {[%emt 0:03:11]} Bxb4 {[%emt 0:00:34]} 56. g4 {[%emt 0:00:25]} Rb8 {[%emt 0:01:30]} 57. g5 {[%emt 0:00:15]} h5 {[%emt 0:00:41]} 58. Nf6+ {[%emt 0:00:28]} Kg7 {[%emt 0:00:13]} 59. Ne4 {[%emt 0:00:49]} Rd8 {[%emt 0:00:45]} 60. Rb7 {[%emt 0:00:06]} Ba3 {[%emt 0:00:13]} 61. Kg2 {[%emt 0:00:32]} Kg8 {[%emt 0:00:53]} 62. Nf6+ {[%emt 0:00:03]} Kg7 {[%emt 0:00:07]} 63. Nd7 {[%emt 0:01:01]} Bd6 {[%emt 0:00:14]} 64. Kf3 {[%emt 0:00:03]} Kg8 {[%emt 0:00:36]} 65. Ra7 {[%emt 0:01:10]} Kg7 {[%emt 0:00:12]} 66. Nf6 {[%emt 0:00:25]} Be5 {[%emt 0:00:48]} 67. Ne4 {[%emt 0:00:05]} Bd6 {[%emt 0:00:07]} 68. Rb7 {[%emt 0:00:10]} Ba3 {[%emt 0:00:15]} 69. Nc3 {[%emt 0:00:39]} Bc5 {[%emt 0:00:21]} 70. Ne2 {[%emt 0:00:28]} Kg8 {[%emt 0:00:44]} 71. Rb5 {[%emt 0:00:29]} Bd6 {[%emt 0:00:11]} 72. Nd4 {[%emt 0:00:27]} Ba3 {[%emt 0:00:18]} 73. Rb7 {[%emt 0:00:35]} Bd6 {[%emt 0:00:49]} 74. Kg2 {[%emt 0:00:36]} Ba3 {[%emt 0:00:51]} 75. Nc6 {[%emt 0:00:31]} Rc8 {[%emt 0:00:40]} 76. Ne5 {[%emt 0:00:35]} Rf8 {[%emt 0:00:05]} 77. Kf3 {[%emt 0:00:48]} Bd6 {[%emt 0:00:43]} 78. Nc4 {[%emt 0:00:42]} Rd8 {[%emt 0:00:32]} 79. Ke4 {[%emt 0:00:20]} Bc5 {[%emt 0:00:26]} 80. Ne5 {[%emt 0:00:40]} Rf8 {[%emt 0:00:03]} 81. Nd7 {[%emt 0:00:18]} Rc8 {[%emt 0:00:12]} 82. Ke5 {[%emt 0:00:42]} Be7 {[%emt 0:01:40]} 83. Nf6+ {[%emt 0:01:15]} Kf8 84. Ne4 {[%emt 0:00:00]} Ra8 {[%emt 0:01:07]} 85. Rb5 {[%emt 0:00:23]} Rc8 {[%emt 0:00:23]} 86. Rb7 {[%emt 0:00:29]} Ra8 {[%emt 0:00:07]} 87. Nf6 {[%emt 0:00:35]} Ra5+ {[%emt 0:00:26]} 88. Ke4 {[%emt 0:00:22]} Ra4+ {[%emt 0:00:10]} 89. Ke5 {[%emt 0:00:37]} Ra5+ {[%emt 0:00:03]} 90. Ke4 {[%emt 0:00:15]} Ra4+ {[%emt 0:00:03]} 91. Kf3 {[%emt 0:00:37]} Ra8 {[%emt 0:00:08]} 92. Nd7+ {[%emt 0:00:21]} Ke8 {[%emt 0:01:06]} 93. Ne5 {[%emt 0:00:08]} Rc8 {[%emt 0:00:29]} 94. Kg2 {[%emt 0:00:37]} Kf8 {[%emt 0:00:33]} 95. f4 {[%emt 0:00:41]} Ke8 {[%emt 0:02:18]} 96. Kf3 {[%emt 0:00:01]} Kf8 {[%emt 0:00:10]} 97. Rd7 {[%emt 0:01:06]} Ke8 {[%emt 0:00:23]} 98. Rd3 {[%emt 0:00:08]} Kf8 {[%emt 0:00:51]} 99. Kg3 {[%emt 0:00:42]} Ke8 {[%emt 0:00:06]} 100. Rb3 {[%emt 0:00:54]} Bd6 {[%emt 0:00:32]} 101. Nf3 {[%emt 0:00:26]} Ke7 {[%emt 0:00:32]} 102. Rb7+ {[%emt 0:00:33]} Ke8 {[%emt 0:00:08]} 103. Nd4 {[%emt 0:00:22]} Bc5 {[%emt 0:00:30]} 104. Nc2 {[%emt 0:00:40]} Be7 {[%emt 0:00:14]} 105. Nd4 {[%emt 0:00:30]} Bc5 {[%emt 0:00:05]} 106. Nc2 {[%emt 0:00:30]} Be7 {[%emt 0:00:07]} 107. Rb2 {[%emt 0:00:32]} Bc5 {[%emt 0:00:15]} 108. Kf3 {[%emt 0:00:08]} Be7 {[%emt 0:00:11]} 109. Nd4 {[%emt 0:00:18]} Bd6 {[%emt 0:00:52]} 110. Rb7 {[%emt 0:00:14]} Bc5 {[%emt 0:00:11]} 111. Ne2 {[%emt 0:00:38]} Be7 {[%emt 0:00:06]} 112. e4 {[%emt 0:00:36]} Rd8 {[%emt 0:00:37]} 113. Rb3 {[%emt 0:00:45]} Ra8 {[%emt 0:01:55]} 114. f5 {[%emt 0:00:45]} exf5 {[%emt 0:00:51]} 115. exf5 {[%emt 0:00:02]} Ra3 {[%emt 0:01:02]} 116. Rxa3 {[%emt 0:00:02]} Bxa3 {[%emt 0:00:04]} 117. Nf4 {[%emt 0:00:35]} gxf5 {[%emt 0:00:25]} 118. Nxh5 {[%emt 0:00:02]} Bd6 {[%emt 0:00:15]} 119. Ng7+ {[%emt 0:00:13]} Kf8 {[%emt 0:00:10]} 120. Nxf5 {[%emt 0:00:02]} Ba3 {[%emt 0:00:16]} 121. Kg4 {[%emt 0:01:42]} Kg8 {[%emt 0:00:55]} 122. h5 {[%emt 0:01:18]} Kh7 {[%emt 0:00:55]} 123. Ng3 {[%emt 0:00:06]} Bb2 {[%emt 0:00:44]} 124. Kf5 {[%emt 0:00:04]} Kg7 {[%emt 0:00:13]} 125. Ne4 {[%emt 0:00:09]} Kg8 {[%emt 0:00:38]} 126. Nf6+ {[%emt 0:01:31]} Kg7 {[%emt 0:01:11]} 127. Ng4 {[%emt 0:00:32]} Kg8 {[%emt 0:00:46]} 128. Ne5 {[%emt 0:00:34]} Kg7 {[%emt 0:00:24]} 129. Nd3 {[%emt 0:00:08]} Bc3 {[%emt 0:00:16]} 130. Nf4 {[%emt 0:00:06]} Bb2 {[%emt 0:00:11]} 131. Nd5 {[%emt 0:01:20]} Kg8 {[%emt 0:00:19]} 132. Nc7 {[%emt 0:00:31]} Kg7 {[%emt 0:00:16]} 133. Ne8+ {[%emt 0:00:34]} Kf8 {[%emt 0:00:19]} 134. Nf6 {[%emt 0:00:31]} Kg7 {[%emt 0:00:08]} 135. Ne4 {[%emt 0:00:25]} Kg8 {[%emt 0:00:19]} 136. Kg4 {[%emt 0:00:33]} Kg7 {[%emt 0:00:15]} 137. Ng3 {[%emt 0:00:34]} Bc3 {[%emt 0:02:03]} 138. Nf1 {[%emt 0:00:06]} Bb2 {[%emt 0:00:10]} 139. Ne3 {[%emt 0:00:04]} Bc3 {[%emt 0:00:12]} 140. Nc4 {[%emt 0:00:08]} Bd4 {[%emt 0:00:30]} 141. Kf5 {[%emt 0:00:16]} Bc3 {[%emt 0:00:17]} 142. Nb6 {[%emt 0:00:34]} Bb2 {[%emt 0:00:07]} 143. Nd7 {[%emt 0:00:02]} Bc3 {[%emt 0:00:37]} 144. h6+ {[%emt 0:01:15]} Kg8 {[%emt 0:00:26]} 145. g6 {[%emt 0:01:26]} fxg6+ {[%emt 0:00:05]} 146. Kxg6 {[%emt 0:00:06]} Kh8 {[%emt 0:01:17]} 147. h7 {[%emt 0:00:56]} Bd4 {[%emt 0:00:21]} 148. Nf8 {[%emt 0:00:13]} Bf6 {[%emt 0:00:37]} 149. Ne6 {[%emt 0:00:47]} Bh4 {[%emt 0:00:20]} 150. Ng7 {[%emt 0:00:24]} Bg5 {[%emt 0:00:43]} 151. Nf5 {[%emt 0:00:37]} Bf4 {[%emt 0:00:01]} 152. Nd4 {[%emt 0:00:27]} Be5 {[%emt 0:00:25]} 153. Nf3 {[%emt 0:00:39]} Bf6 {[%emt 0:00:17]} 154. Nh2 {[%emt 0:00:04]} Be5 {[%emt 0:00:15]} 155. Ng4 {[%emt 0:00:37]} Bg7 {[%emt 0:00:06]} 156. Ne3 {[%emt 0:00:41]} Be5 {[%emt 0:00:34]} 157. Nd5 {[%emt 0:00:30]} Bd4 {[%emt 0:00:25]} 158. Ne7 {[%emt 0:00:32]} Be5 {[%emt 0:00:40]} 159. Nf5 {[%emt 0:00:34]} Bf4 {[%emt 0:00:06]} 160. Ng7 {[%emt 0:00:27]} Bg5 {[%emt 0:00:42]} 161. Nh5 {[%emt 0:00:22]} Bf6 {[%emt 0:00:38]} 162. Nf4 {[%emt 0:00:16]} Be5 {[%emt 0:00:41]} 163. Nd3 {[%emt 0:00:25]} Bd6 {[%emt 0:00:10]} 164. Ne1 {[%emt 0:00:07]} Be5 {[%emt 0:00:12]} 165. Ng2 {[%emt 0:00:22]} Bd4 {[%emt 0:00:31]} 166. Nh4 {[%emt 0:00:23]} Be5 {[%emt 0:00:11]} 167. Nf3 {[%emt 0:01:00]} Bf6 {[%emt 0:00:07]} 168. Ng1 {[%emt 0:00:14]} Bd4 {[%emt 0:00:19]} 169. Ne2 {[%emt 0:00:05]} Be5 {[%emt 0:00:04]} 170. Nc1 {[%emt 0:00:09]} Bf4 {[%emt 0:00:17]} 171. Nb3 {[%emt 0:00:14]} Be3 {[%emt 0:00:08]} 172. Na5 {[%emt 0:00:12]} Bb6 {[%emt 0:01:25]} 173. Nc6 {[%emt 0:00:17]} Bc7 {[%emt 0:00:07]} 174. Nd4 {[%emt 0:02:50]} Be5 {[%emt 0:00:47]} 175. Ne6 {[%emt 0:00:33]} Bf6 {[%emt 0:00:14]} 176. Nc5 {[%emt 0:00:33]} Bd8 {[%emt 0:01:58]} 177. Nd7 {[%emt 0:00:28]} Bf6 {[%emt 0:00:36]} 178. Nb6 {[%emt 0:00:17]} Be5 {[%emt 0:01:50]} 179. Nc4 {[%emt 0:00:35]} Bc7 {[%emt 0:00:07]} 180. Nd2 {[%emt 0:00:06]} Be5 {[%emt 0:00:23]} 181. Ne4 {[%emt 0:00:20]} Bf4 {[%emt 0:00:08]} 182. Nf6 {[%emt 0:00:27]} Be5 {[%emt 0:01:06]} 183. Ng4 {[%emt 0:00:17]} Bg7 {[%emt 0:00:14]} 184. Nf2 {[%emt 0:00:13]} Be5 {[%emt 0:00:33]} 185. Nh3 {[%emt 0:00:42]} Bf6 {[%emt 0:00:23]} 186. Nf4 {[%emt 0:00:07]} Be5 {[%emt 0:00:35]} 187. Ng2 {[%emt 0:00:43]} Bd4 {[%emt 0:00:31]} 188. Nh4 {[%emt 0:00:15]} Be5 {[%emt 0:00:05]} 189. Nf3 {[%emt 0:01:31]} 1/2-1/2

[Event "Czech Extraliga 2024-25"]
[Site "Czechia"]
[Date "2024.11.02"]
[Round "9.7"]
[White "Varejcko, Josef"]
[Black "Vrana, Jan"]
[Result "0-1"]
[ECO "A46"]
[WhiteElo "2105"]
[BlackElo "2348"]
[Annotator "RC"]
[PlyCount "90"]
[EventDate "2024.09.12"]
[EventType "team-tourn"]
[EventCountry "CZE"]
[SourceTitle "playchess.com"]
[Source "ChessBase"]
[SourceQuality "1"]
[TimeControl "40/5400+30:1800+30"]

1. d4 {[%emt 0:00:05]} Nf6 {[%emt 0:00:24]} 2. g3 {[%emt 0:00:12]} d5 {[%emt 0:00:08]} 3. Bg2 {[%emt 0:00:12]} e6 {[%emt 0:00:14]} 4. Nf3 {[%emt 0:00:11]} b5 {[%emt 0:00:56]} 5. c3 {[%emt 0:00:44]} Be7 {[%emt 0:01:59]} 6. O-O {[%emt 0:00:36]} O-O {[%emt 0:00:42]} 7. a4 {[%emt 0:00:11]} b4 {[%emt 0:01:26]} 8. Ne5 {[%emt 0:02:51]} Nfd7 {[%emt 0:23:46]} 9. f4 {[%emt 0:04:29]} Nxe5 {[%emt 0:03:38]} 10. fxe5 {[%emt 0:00:29]} c5 {[%emt 0:00:28]} 11. Nd2 {[%emt 0:05:54]} Nc6 {[%emt 0:02:21]} 12. Nf3 {[%emt 0:06:30]} Ba6 {[%emt 0:01:48]} 13. Re1 {[%emt 0:01:59]} Qa5 {[%emt 0:13:25]} 14. Bd2 {[%emt 0:10:39]} Rad8 {[%emt 0:15:38]} 15. Kh1 {[%emt 0:06:04]} Bc4 {[%emt 0:05:15]} 16. cxb4 {[%emt 0:07:57]} Nxb4 {[%emt 0:02:14]} 17. b3 {[%emt 0:03:57]} Ba6 {[%emt 0:00:16]} 18. Rc1 {[%emt 0:03:43]} cxd4 {[%emt 0:04:14]} 19. Nxd4 {[%emt 0:00:35]} Qb6 {[%emt 0:00:05]} 20. Be3 {[%emt 0:06:21]} Qb8 {[%emt 0:02:44]} 21. Nc6 {[%emt 0:05:44]} Nxc6 {[%emt 0:00:40]} 22. Rxc6 {[%emt 0:00:10]} Bb7 {[%emt 0:00:04]} 23. Rc2 {[%emt 0:00:43]} d4 {[%emt 0:03:42]} 24. Bxd4 {[%emt 0:01:11]} Bxg2+ {[%emt 0:00:03]} 25. Kxg2 {[%emt 0:00:14]} Qxb3 {[%emt 0:00:15]} 26. e3 {[%emt 0:03:45]} Bb4 {[%emt 0:04:51]} 27. Rf1 {[%emt 0:05:15]} Qxa4 {[%emt 0:00:43]} 28. Qb1 {[%emt 0:00:14]} a5 {[%emt 0:00:40]} 29. Rc7 {[%emt 0:01:16]} Rd7 {[%emt 0:01:28]} 30. Rc4 {[%emt 0:01:19]} Qb5 {[%emt 0:00:40]} 31. Rfc1 {[%emt 0:00:46]} Qd5+ {[%emt 0:01:13]} 32. Kg1 {[%emt 0:01:10]} h5 {[%emt 0:02:53]} 33. Qc2 {[%emt 0:04:34]} Ra8 {[%emt 0:02:00]} 34. Qe2 {[%emt 0:01:13]} g6 {[%emt 0:00:14]} 35. g4 {[%emt 0:01:49]} hxg4 {[%emt 0:00:19]} 36. Qxg4 {[%emt 0:00:27]} Kg7 {[%emt 0:01:40]} 37. Qf4 {[%emt 0:02:27]} Be7 {[%emt 0:02:18]} 38. e4 {[%emt 0:02:49]} Qb5 {[%emt 0:01:47]} 39. Be3 {[%emt 0:01:14]} Rad8 {[%emt 0:01:29]} 40. Rc7 {[%emt 0:05:39]} Rxc7 {[%emt 0:01:01]} 41. Rxc7 {[%emt 0:32:06]} Qe2 {[%emt 0:07:30]} 42. Qf2 {[%emt 0:00:00]} Rd1+ {[%emt 0:02:39]} 43. Kg2 {[%emt 0:00:00]} Qg4+ {[%emt 0:00:01]} 44. Qg3 {[%emt 0:00:00]} Qxe4+ {[%emt 0:00:19]} 45. Kh3 {[%emt 0:00:00]} Qf5+ {[%emt 0:00:58]} 0-1